bitfinex-derivatives/quotes_BTCF0:USTF0_20250713
["timestamp","ask_amount","ask_price","bid_price","bid_amount"]
[1752405568279,0.7032724,118010.0,118000.0,0.40159631]
[1752405568484,0.7032724,118010.0,118000.0,0.39291484]
[1752405570386,0.7032724,118010.0,118000.0,0.40155246]
[1752405573487,0.7032724,118010.0,118000.0,0.39291484]
[1752405575496,0.7031924,118010.0,118000.0,0.39291484]
[1752405578798,0.1218324,118010.0,118000.0,0.39291484]
[1752405579002,0.7031924,118010.0,118000.0,0.39291484]
[1752405580601,0.1218324,118010.0,118000.0,0.39291484]
[1752405580798,0.7031924,118010.0,118000.0,0.39291484]
[1752405581104,0.1218324,118010.0,118000.0,0.39291484]
[1752405581296,0.7031924,118010.0,118000.0,0.39291484]
[1752405582301,0.1218324,118010.0,118000.0,0.39291484]
[1752405582600,0.7031924,118010.0,118000.0,0.39291484]
[1752405582896,0.1218324,118010.0,118000.0,0.39291484]
[1752405583100,0.7031924,118010.0,118000.0,0.39291484]
[1752405584203,0.7031924,118010.0,118000.0,0.03211484]
[1752405584403,0.7031924,118010.0,118000.0,0.39291484]
[1752405585301,0.7031524,118010.0,118000.0,0.39291484]
[1752405585501,0.1218324,118010.0,118000.0,0.39291484]
[1752405585701,0.7031524,118010.0,118000.0,0.39291484]
[1752405586903,0.7031524,118010.0,118000.0,0.03211484]
[1752405587100,0.7031524,118010.0,118000.0,0.39291484]
[1752405588906,0.1218324,118010.0,118000.0,0.39291484]
[1752405589103,0.7031524,118010.0,118000.0,0.39291484]
[1752405591307,0.7031524,118010.0,118000.0,0.03211484]
[1752405591500,0.7031524,118010.0,118000.0,0.39291484]
[1752405593408,0.1218324,118010.0,118000.0,0.39291484]
[1752405593597,0.7031524,118010.0,118000.0,0.39291484]
[1752405594205,1.0639524,118010.0,118000.0,0.03211484]
[1752405594602,1.0639524,118010.0,118000.0,0.00193484]
[1752405597903,0.7031524,118010.0,118000.0,0.00193484]
[1752405598111,1.0639524,118010.0,118000.0,0.00193484]
[1752405608817,1.12497265,118010.0,118000.0,0.00193484]
[1752405610114,0.54365265,118010.0,118000.0,0.00193484]
[1752405610316,1.12497265,118010.0,118000.0,0.00193484]
[1752405611019,1.0639524,118010.0,118000.0,0.00193484]
[1752405618031,1.12497265,118010.0,118000.0,0.00193484]
[1752405618828,1.0639524,118010.0,118000.0,0.00193484]
[1752405619830,0.7031524,118010.0,118000.0,0.00193484]
[1752405620030,1.0639524,118010.0,118000.0,0.00193484]
[1752405624327,0.7031524,118010.0,118000.0,0.00193484]
[1752405624532,1.0639524,118010.0,118000.0,0.00193484]
[1752405627237,1.12497265,118010.0,118000.0,0.00193484]
[1752405628236,1.0639524,118010.0,118000.0,0.00193484]
[1752405628438,1.12497265,118010.0,118000.0,0.00193484]
[1752405641661,1.12497265,118010.0,117970.0,0.45512428]
[1752405641662,0.10434,117980.0,117970.0,0.45512428]
[1752405641958,0.10434,117980.0,117970.0,0.40949306]
[1752405641959,0.7028924,117980.0,117970.0,0.40949306]
[1752405642159,0.7028924,117980.0,117970.0,0.41784087]
[1752405642654,0.7028924,117980.0,117970.0,0.40022781]
[1752405643257,0.7028924,117980.0,117970.0,0.40422781]
[1752405643858,0.7028924,117980.0,117970.0,0.40322781]
[1752405645156,0.7028924,117980.0,117970.0,0.40622781]
[1752405645859,0.7028924,117980.0,117970.0,0.40522781]
[1752405653368,0.7028924,117980.0,117970.0,0.04442781]
[1752405653569,0.7028924,117980.0,117970.0,0.40522781]
[1752405655365,0.7028924,117980.0,117970.0,0.04442781]
[1752405655560,0.7028924,117980.0,117970.0,0.03608]
[1752405655967,0.7028924,117980.0,117970.0,0.005]
[1752405658473,0.7028924,117980.0,117970.0,0.01364585]
[1752405658673,0.7030924,117980.0,117970.0,0.0052]
[1752405665677,0.7030924,117980.0,117970.0,0.01371608]
[1752405666580,0.7030924,117980.0,117970.0,0.0052]
[1752405668471,0.7030924,117980.0,117970.0,0.0022]
[1752405669180,0.7030924,117980.0,117970.0,0.01080444]
[1752405670380,0.7030924,117980.0,117970.0,0.00880444]
[1752405689992,0.1218924,117980.0,117970.0,0.00880444]
[1752405690192,0.7030124,117980.0,117970.0,0.00880444]
[1752405693298,1.12483265,117980.0,117970.0,0.0002]
[1752405693596,1.0638124,117980.0,117970.0,0.0002]
[1752405693796,1.0638124,117980.0,117970.0,0.00857249]
[1752405694597,1.0638124,117980.0,117970.0,0.0002]
[1752405696201,1.12483265,117980.0,117970.0,0.0002]
[1752405708817,1.0638124,117980.0,117970.0,0.0002]
[1752405710721,1.04646,117980.0,117970.0,0.0002]
[1752405710920,1.06508669,117980.0,117970.0,0.0002]
[1752405713528,1.06508669,117980.0,117970.0,0.00024]
[1752405714332,1.06500669,117980.0,117970.0,0.00024]
[1752405721533,1.04638,117980.0,117970.0,0.00024]
[1752405721731,1.0651803,117980.0,117970.0,0.00024]
[1752405723232,0.7043803,117980.0,117970.0,0.00024]
[1752405723434,1.0651803,117980.0,117970.0,0.00024]
[1752405725235,1.12620055,117980.0,117970.0,0.00024]
[1752405732637,0.76540055,117980.0,117970.0,0.00024]
[1752405733137,1.12620055,117980.0,117970.0,0.00024]
[1752405734343,0.76540055,117980.0,117970.0,0.00024]
[1752405734544,1.12620055,117980.0,117970.0,0.00024]
[1752405734845,0.76540055,117980.0,117970.0,0.00024]
[1752405736143,0.7043803,117980.0,117970.0,0.00024]
[1752405748853,0.76540055,117980.0,117970.0,0.00024]
[1752405757356,0.76540526,117980.0,117970.0,0.00024]
[1752405764463,0.76540595,117980.0,117970.0,0.00024]
[1752405769970,1.12620595,117980.0,117970.0,0.00024]
[1752405770275,1.12600595,117980.0,117960.0,0.00364515]
[1752405770469,0.07334,117970.0,117960.0,0.00364515]
[1752405770670,0.1241357,117970.0,117960.0,0.00364515]
[1752405771174,0.19320309,117970.0,117960.0,0.00364515]
[1752405771674,0.19320309,117970.0,117960.0,0.00464515]
[1752405772174,0.20174416,117970.0,117960.0,0.00464515]
[1752405772973,0.20174416,117970.0,117960.0,0.00564515]
[1752405775382,0.78382416,117970.0,117960.0,0.00564515]
[1752405779588,0.77528309,117970.0,117960.0,0.00564515]
[1752405785090,0.83630334,117970.0,117960.0,0.00564515]
[1752405785893,1.19710334,117970.0,117960.0,0.00564515]
[1752405803803,0.83630334,117970.0,117960.0,0.00564515]
[1752405804004,1.19730334,117970.0,117960.0,0.00584515]
[1752405805204,1.13628309,117970.0,117960.0,0.00584515]
[1752405806503,0.77548309,117970.0,117960.0,0.00584515]
[1752405806706,1.13628309,117970.0,117960.0,0.00584515]
[1752405807705,0.55420309,117970.0,117960.0,0.00584515]
[1752405807904,1.13536309,117970.0,117960.0,0.00584515]
[1752405808305,1.19642144,117970.0,117960.0,0.00584515]
[1752405809103,1.13536309,117970.0,117960.0,0.00584515]
[1752405814912,1.19642144,117970.0,117960.0,0.00584515]
[1752405819614,0.61526144,117970.0,117960.0,0.00584515]
[1752405819817,0.83546144,117970.0,117960.0,0.03619515]
[1752405821518,0.83546144,117970.0,117960.0,0.00584515]
[1752405825322,0.83146144,117970.0,117960.0,0.00584515]
[1752405830719,0.83216015,117970.0,117960.0,0.00584515]
[1752405836129,1.19296015,117970.0,117960.0,0.00584515]
[1752405836426,0.83216015,117970.0,117960.0,0.00584515]
[1752405837828,1.19296015,117970.0,117960.0,0.00584515]
[1752405838436,0.83216015,117970.0,117960.0,0.00584515]
[1752405838639,1.19296015,117970.0,117960.0,0.00584515]
[1752405838833,0.83216015,117970.0,117960.0,0.00584515]
[1752405839029,0.7711018,117970.0,117960.0,0.00584515]
[1752405840338,1.1319018,117970.0,117960.0,0.00584515]
[1752405841327,0.7711018,117970.0,117960.0,0.00584515]
[1752405841530,1.1319018,117970.0,117960.0,0.00584515]
[1752405841736,0.7711018,117970.0,117960.0,0.00584515]
[1752405843940,1.1319018,117970.0,117960.0,0.00584515]
[1752405844129,0.7711018,117970.0,117960.0,0.00584515]
[1752405844334,0.84737712,117970.0,117960.0,0.00584515]
[1752405844836,0.7711018,117970.0,117960.0,0.00584515]
[1752405845045,0.84737712,117970.0,117960.0,0.00584515]
[1752405848943,0.83216375,117970.0,117960.0,0.00584515]
[1752405851947,1.19296375,117970.0,117960.0,0.00584515]
[1752405852653,0.83216375,117970.0,117960.0,0.00584515]
[1752405854150,0.1901018,117970.0,117960.0,0.03624515]
[1752405854350,0.1901018,117970.0,117960.0,0.44454515]
[1752405854550,0.1901018,117970.0,117960.0,0.46314515]
[1752405854850,0.7709818,117970.0,117960.0,0.46314515]
[1752405856051,0.1901018,117970.0,117960.0,0.46314515]
[1752405856241,0.7709818,117970.0,117960.0,0.46314515]
[1752405856550,0.1901018,117970.0,117960.0,0.46314515]
[1752405856751,0.7709818,117970.0,117960.0,0.46314515]
[1752405856952,0.70191441,117970.0,117960.0,0.46314515]
[1752405857947,0.70191441,117970.0,117960.0,0.44454515]
[1752405859453,0.70187441,117970.0,117960.0,0.44454515]
[1752405861953,0.12103441,117970.0,117960.0,0.44454515]
[1752405862149,0.70183441,117970.0,117960.0,0.46314515]
[1752405862353,0.12103441,117970.0,117960.0,0.46314515]
[1752405862553,0.70183441,117970.0,117960.0,0.46314515]
[1752405862749,0.12103441,117970.0,117960.0,0.46314515]
[1752405863054,0.70183441,117970.0,117960.0,0.46314515]
[1752405863356,0.01776957,117970.0,117960.0,0.63268915]
[1752405863657,0.10596,117990.0,117980.0,0.0304]
[1752405863851,0.07434,117990.0,117980.0,0.4573]
[1752405864156,0.07434,118000.0,117990.0,0.0965]
[1752405864355,0.5808,118000.0,117990.0,0.4573]
[1752405864862,0.6571,118010.0,118000.0,0.0955]
[1752405865059,0.10796,118010.0,118000.0,0.4563]
[1752405865260,0.68872,118010.0,118000.0,0.4563]
[1752405866258,0.68872,118010.0,118000.0,0.46272817]
[1752405867159,0.69072,118010.0,118000.0,0.46272817]
[1752405868158,0.69172,118010.0,118000.0,0.46272817]
[1752405869360,0.69172,118010.0,118000.0,0.75632817]
[1752405875466,0.71105208,118010.0,118000.0,0.75632817]
[1752405875868,0.71169208,118010.0,118000.0,0.75632817]
[1752405880776,0.63058208,118010.0,118000.0,0.75632817]
[1752405881076,0.63078208,118010.0,118000.0,0.75652817]
[1752405881377,0.70786208,118010.0,118000.0,0.75652817]
[1752405882173,0.02453208,118010.0,118000.0,0.92601617]
[1752405883482,0.3608,118040.0,118000.0,0.92601617]
[1752405883680,0.68446,118030.0,118020.0,0.43546]
[1752405883983,0.68446,118030.0,118020.0,0.39365]
[1752405884677,0.10178,118030.0,118020.0,0.43546]
[1752405884980,0.6845,118030.0,118020.0,0.43546]
[1752405885278,0.68446,118030.0,118020.0,0.43546]
[1752405885480,0.69146,118030.0,118020.0,0.43546]
[1752405885980,0.0317,118030.0,118020.0,0.72906]
[1752405886180,0.007,118030.0,118020.0,0.72906]
[1752405886380,0.58956,118030.0,118020.0,0.72906]
[1752405886785,0.61426,118030.0,118020.0,0.72906]
[1752405886983,0.0317,118030.0,118020.0,0.72906]
[1752405887283,1.17616,118050.0,118020.0,0.9159764]
[1752405887284,1.30810195,118050.0,118020.0,0.9159764]
[1752405887484,1.82952,118050.0,118040.0,0.42846]
[1752405887780,0.68826,118050.0,118040.0,0.72206]
[1752405888384,0.68834,118050.0,118040.0,0.72206]
[1752405888983,0.74940195,118050.0,118040.0,0.72206]
[1752405889184,0.16684195,118050.0,118040.0,0.72206]
[1752405889386,0.74928195,118050.0,118040.0,0.72206]
[1752405889780,0.74928195,118050.0,118040.0,0.68725]
[1752405890182,0.75128195,118050.0,118040.0,0.68725]
[1752405890987,0.74928195,118050.0,118040.0,0.68725]
[1752405892988,0.74928195,118050.0,118040.0,0.39365]
[1752405893188,0.74928195,118050.0,118040.0,0.39369]
[1752405893585,0.74928195,118050.0,118040.0,0.37441009]
[1752405894189,0.16684195,118050.0,118040.0,0.40922009]
[1752405894383,0.6883,118050.0,118040.0,0.40922009]
[1752405894585,0.0287,118050.0,118040.0,0.40922009]
[1752405894780,0.06106195,118050.0,118040.0,1.26709328]
[1752405894989,0.0247,118060.0,118040.0,1.26709328]
[1752405895188,0.0247,118060.0,118050.0,1.5268]
[1752405895389,0.0247,118060.0,118050.0,1.55761]
[1752405895589,0.04398716,118060.0,118050.0,1.55761]
[1752405895887,0.04398716,118060.0,118050.0,1.85121]
[1752405896391,0.01928716,118060.0,118050.0,1.85121]
[1752405896787,0.02128716,118060.0,118050.0,1.85121]
[1752405896989,0.02128716,118060.0,118050.0,2.020626]
[1752405897190,0.07088,118080.0,118070.0,0.02797]
[1752405897491,0.07088,118080.0,118070.0,1.91713]
[1752405897893,0.07088,118080.0,118070.0,1.92564508]
[1752405900000,0.10178,118080.0,118070.0,1.92364508]
[1752405900200,0.10198,118080.0,118070.0,1.92384508]
[1752405900496,0.68598,118080.0,118070.0,0.73824]
[1752405901901,0.68598,118080.0,118070.0,1.03184]
[1752405902998,0.10198,118080.0,118070.0,1.03184]
[1752405903203,0.10198,118080.0,118070.0,1.03937]
[1752405903605,0.10198,118080.0,118070.0,1.03184]
[1752405905907,0.10198,118080.0,118070.0,0.67104]
[1752405906199,0.10198,118080.0,118070.0,0.31024]
[1752405907104,0.10198,118080.0,118070.0,0.67104]
[1752405907406,0.10198,118080.0,118070.0,0.6546]
[1752405907801,0.46278,118080.0,118070.0,0.0002]
[1752405908402,0.52384195,118080.0,118070.0,0.0002]
[1752405908905,0.46278,118080.0,118070.0,0.0002]
[1752405909406,0.48176994,118080.0,118070.0,0.0002]
[1752405913309,0.54283189,118080.0,118070.0,0.0002]
[1752405915611,0.48176994,118080.0,118070.0,0.0002]
[1752405916306,0.54283189,118080.0,118070.0,0.0002]
[1752405919917,0.54288404,118080.0,118070.0,0.0002]
[1752405926718,1.12752404,118080.0,118070.0,0.0002]
[1752405928620,1.13607847,118080.0,118070.0,0.0002]
[1752405928922,1.07501652,118080.0,118070.0,0.0002]
[1752405930325,1.05597443,118080.0,118070.0,0.0002]
[1752405930921,1.05597443,118080.0,118070.0,0.00011042]
[1752405931127,1.05577443,118080.0,118070.0,0.00011042]
[1752405932222,1.04722,118080.0,118070.0,0.00011042]
[1752405932423,1.1164476,118080.0,118070.0,0.00011042]
[1752405932727,1.12714191,118080.0,118070.0,0.00011042]
[1752405933825,1.10810966,118080.0,118070.0,0.00011042]
[1752405934625,1.04722,118080.0,118070.0,0.00011042]
[1752405935923,0.02294,118070.0,118040.0,0.65613427]
[1752405936226,0.10091,118050.0,118040.0,0.67681701]
[1752405939129,0.07797,118050.0,118040.0,0.67781701]
[1752405940528,0.07797,118050.0,118040.0,0.67881701]
[1752405941228,0.10091,118050.0,118040.0,0.67881701]
[1752405943732,0.11996117,118050.0,118040.0,0.67881701]
[1752405944230,0.11996117,118050.0,118040.0,0.68645701]
[1752405948431,0.70480117,118050.0,118040.0,0.68645701]
[1752405949133,0.70484117,118050.0,118040.0,0.68645701]
[1752405951131,0.11996117,118050.0,118040.0,0.68645701]
[1752405951331,0.70488117,118050.0,118040.0,0.68645701]
[1752405951533,0.67397117,118050.0,118040.0,0.68645701]
[1752405952032,0.01905117,118050.0,118040.0,0.68645701]
[1752405952227,0.01141117,118050.0,118040.0,0.68645701]
[1752405952531,0.06815,118070.0,118040.0,1.09824101]
[1752405952732,0.0002,118060.0,118050.0,1.17064]
[1752405952932,0.0002,118060.0,118050.0,1.53164]
[1752405953132,0.0002,118060.0,118050.0,1.701056]
[1752405953826,0.0002,118060.0,118050.0,1.994656]
[1752405954232,0.0002,118060.0,118050.0,2.244656]
[1752405955435,0.0002,118060.0,118050.0,2.247656]
[1752405955734,0.0002,118060.0,118050.0,2.249656]
[1752405958937,0.004,118090.0,118050.0,2.08004]
[1752405959236,0.004,118090.0,118080.0,0.3608]
[1752405959436,0.004,118090.0,118080.0,1.53208]
[1752405960038,0.004,118090.0,118080.0,1.701448]
[1752405963841,0.004,118090.0,118080.0,1.53208]
[1752405964742,0.08170308,118110.0,118080.0,1.78208]
[1752405964942,0.08170308,118110.0,118100.0,0.7216]
[1752405965141,0.08170308,118110.0,118100.0,1.91021565]
[1752405965338,0.14985308,118110.0,118100.0,2.20381565]
[1752405965541,0.08170308,118110.0,118100.0,2.37315965]
[1752405966034,0.08170308,118110.0,118100.0,2.32955965]
[1752405966544,0.08170308,118110.0,118100.0,2.39586674]
[1752405966943,0.08170308,118110.0,118100.0,2.89586674]
[1752405967240,0.08170308,118110.0,118100.0,2.64586674]
[1752405968440,0.51961867,118160.0,118100.0,3.08979316]
[1752405968742,0.17767835,118160.0,118140.0,0.37848091]
[1752405969041,0.17767835,118160.0,118140.0,1.55108091]
[1752405969243,0.20997835,118160.0,118140.0,1.55108091]
[1752405969846,0.0739,118150.0,118140.0,1.55108091]
[1752405970741,0.0739,118150.0,118140.0,1.55936161]
[1752405971240,0.13457867,118160.0,118140.0,1.72864161]
[1752405971444,0.20993664,118160.0,118150.0,0.3608]
[1752405974746,0.20993664,118160.0,118150.0,0.36084]
[1752405977144,0.20993664,118160.0,118150.0,4e-05]
[1752405977345,0.21013664,118160.0,118150.0,0.00024]
[1752405977650,1.15645664,118160.0,118150.0,0.00024]
[1752405978651,0.04966,118120.0,118090.0,0.3608]
[1752405978845,0.1062,118100.0,118090.0,0.3608]
[1752405979153,0.0739,118090.0,118080.0,0.36444145]
[1752405979353,0.1062,118090.0,118080.0,0.36444145]
[1752405979548,0.1250189,118090.0,118080.0,0.37334743]
[1752405981660,0.1250189,118090.0,118080.0,0.37834743]
[1752405982560,0.1250189,118090.0,118080.0,0.38434743]
[1752405983161,1.2960989,118090.0,118080.0,0.38434743]
[1752405983961,1.2960989,118090.0,118080.0,0.38438743]
[1752405985864,0.1250189,118090.0,118080.0,0.38438743]
[1752405986162,0.7108189,118090.0,118080.0,0.38438743]
[1752405986664,0.7106989,118090.0,118080.0,0.38438743]
[1752405987564,0.1250189,118090.0,118080.0,0.38414743]
[1752405987960,0.7105389,118090.0,118080.0,0.38414743]
[1752405988467,0.1250189,118090.0,118080.0,0.38414743]
[1752405988766,0.7109789,118090.0,118080.0,0.38414743]
[1752405988968,0.1250189,118090.0,118080.0,0.38414743]
[1752405989161,0.7109789,118090.0,118080.0,0.38414743]
[1752405990058,0.7108989,118090.0,118080.0,0.38414743]
[1752405990362,0.1250189,118090.0,118080.0,0.38414743]
[1752405990562,0.7108189,118090.0,118080.0,0.38438743]
[1752405991069,0.1250189,118090.0,118080.0,0.38438743]
[1752405991962,0.1062,118090.0,118080.0,0.38438743]
[1752406001173,0.0739,118090.0,118080.0,0.38438743]
[1752406001369,0.0741,118090.0,118080.0,0.38458743]
[1752406003872,0.0002,118090.0,118080.0,0.38458743]
[1752406004077,0.0002,118090.0,118080.0,0.55395543]
[1752406004276,0.0002,118090.0,118080.0,1.13855543]
[1752406005477,0.07077,118110.0,118080.0,1.13811543]
[1752406005772,0.01887964,118110.0,118100.0,0.7216]
[1752406005978,0.01887964,118110.0,118100.0,1.37221276]
[1752406006276,0.01887964,118110.0,118100.0,1.54155676]
[1752406006676,0.07077,118120.0,118100.0,1.54155676]
[1752406006876,0.08966339,118120.0,118110.0,0.3608]
[1752406008475,0.08966339,118120.0,118110.0,0.3698]
[1752406012579,0.12187339,118120.0,118110.0,0.3698]
[1752406014182,0.12187339,118120.0,118110.0,0.38750759]
[1752406015572,0.01889339,118120.0,118110.0,0.38750759]
[1752406016075,0.08966339,118120.0,118110.0,0.38750759]
[1752406018579,0.01889339,118120.0,118110.0,0.38750759]
[1752406018980,0.04371339,118120.0,118110.0,0.38750759]
[1752406019180,0.08966339,118120.0,118110.0,0.38750759]
[1752406020689,0.12187339,118120.0,118110.0,0.38750759]
[1752406028393,0.10298,118120.0,118110.0,0.38750759]
[1752406028697,0.12208864,118120.0,118110.0,0.38770759]
[1752406029002,0.12208864,118120.0,118110.0,0.68130759]
[1752406035600,0.12208864,118120.0,118110.0,0.3028]
[1752406037501,0.70480864,118120.0,118110.0,0.3028]
[1752406040907,0.70480864,118120.0,118110.0,0.0092]
[1752406043908,0.70480864,118120.0,118110.0,0.37]
[1752406044605,0.70420864,118120.0,118110.0,0.37]
[1752406049313,0.70384864,118120.0,118110.0,0.37]
[1752406049716,0.12208864,118120.0,118110.0,0.37]
[1752406049907,0.70384864,118120.0,118110.0,0.37]
[1752406056827,0.70384864,118120.0,118110.0,0.0092]
[1752406057029,0.70384864,118120.0,118110.0,0.37]
[1752406070530,0.70380864,118120.0,118110.0,0.37]
[1752406070835,0.6849,118120.0,118110.0,0.37]
[1752406071036,0.70386801,118120.0,118110.0,0.37]
[1752406075235,0.70386801,118120.0,118110.0,0.0092]
[1752406075436,0.70386801,118120.0,118110.0,0.37]
[1752406076936,0.70386801,118120.0,118110.0,0.37004]
[1752406091243,0.12214801,118120.0,118110.0,0.37004]
[1752406091443,0.70374801,118120.0,118110.0,0.37004]
[1752406099848,0.70374801,118120.0,118110.0,0.00924]
[1752406100048,0.70374801,118120.0,118110.0,0.37004]
[1752406106458,0.70374801,118120.0,118110.0,0.00924]
[1752406106660,0.70374801,118120.0,118110.0,0.37004]
[1752406107459,0.70374801,118120.0,118110.0,0.00924]
[1752406107658,0.70374801,118120.0,118110.0,0.37004]
[1752406111260,0.7038207,118120.0,118110.0,0.37004]
[1752406115362,0.1222207,118120.0,118110.0,0.37004]
[1752406115556,0.7035407,118120.0,118110.0,0.37004]
[1752406123167,0.7035407,118120.0,118110.0,0.00924]
[1752406123467,0.7035407,118120.0,118110.0,0.73084]
[1752406125467,0.70354003,118120.0,118110.0,0.73084]
[1752406127165,0.70354003,118120.0,118110.0,0.00924]
[1752406127371,0.70354003,118120.0,118110.0,0.73084]
[1752406129571,0.70354003,118120.0,118110.0,1.02444]
[1752406132673,0.70353978,118120.0,118110.0,1.02444]
[1752406134972,0.70353978,118120.0,118110.0,0.73084]
[1752406137179,0.09000978,118120.0,118110.0,0.73084]
[1752406147387,0.09000978,118120.0,118110.0,1.02444]
[1752406147992,0.01923978,118120.0,118110.0,1.02444]
[1752406150288,0.0002,118120.0,118110.0,1.02444]
[1752406151279,0.01881988,118120.0,118110.0,1.02444]
[1752406152089,0.08965988,118120.0,118110.0,1.02444]
[1752406154493,0.07104,118120.0,118110.0,1.02444]
[1752406157893,0.07104,118120.0,118110.0,1.04184592]
[1752406165400,0.0896575,118120.0,118110.0,1.04184592]
[1752406167902,0.0896575,118120.0,118110.0,0.32024592]
[1752406168107,0.0896575,118120.0,118110.0,1.04184592]
[1752406169004,0.07104,118120.0,118110.0,1.04184592]
[1752406173209,0.07104,118120.0,118110.0,0.74824592]
[1752406175807,0.07104,118120.0,118110.0,0.02664592]
[1752406176010,0.07104,118120.0,118110.0,0.74824592]
[1752406182914,0.07104,118120.0,118110.0,1.04184592]
[1752406188709,0.07104,118120.0,118110.0,1.10253314]
[1752406192219,0.10334,118120.0,118110.0,1.10253314]
[1752406197614,0.10334,118120.0,118110.0,0.80893314]
[1752406203524,0.10334,118120.0,118110.0,1.10253314]
[1752406209135,0.10334,118120.0,118110.0,1.04184592]
[1752406210239,0.12210454,118120.0,118110.0,1.04184592]
[1752406220340,0.10334,118120.0,118110.0,1.04184592]
[1752406221146,0.12209211,118120.0,118110.0,1.04184592]
[1752406227352,0.19102057,118120.0,118110.0,1.04184592]
[1752406231354,0.19102057,118120.0,118110.0,1.03884592]
[1752406232554,0.19102057,118120.0,118110.0,1.03484592]
[1752406232754,0.19102057,118120.0,118110.0,1.03684592]
[1752406233556,0.19102057,118120.0,118110.0,1.03784592]
[1752406234556,0.19102057,118120.0,118110.0,1.03584592]
[1752406234756,0.19102057,118120.0,118110.0,1.03884592]
[1752406238357,0.61034857,118120.0,118110.0,0.00624]
[1752406238555,0.97114857,118120.0,118110.0,0.00624]
[1752406239762,0.97114857,118120.0,118110.0,0.00524]
[1752406240961,0.97114857,118120.0,118110.0,0.00424]
[1752406241355,0.97114857,118120.0,118110.0,0.00524]
[1752406241862,0.97114857,118120.0,118110.0,0.00324]
[1752406242064,0.97114857,118120.0,118110.0,0.00424]
[1752406245161,0.72114857,118120.0,118110.0,0.00424]
[1752406246362,1.30098857,118120.0,118110.0,0.00424]
[1752406247456,0.94018857,118120.0,118110.0,0.00424]
[1752406247662,1.66178857,118120.0,118110.0,0.00424]
[1752406248964,1.08194857,118120.0,118110.0,0.00424]
[1752406249160,1.66178857,118120.0,118110.0,0.00424]
[1752406257270,1.72273839,118120.0,118110.0,0.00424]
[1752406257473,1.66178857,118120.0,118110.0,0.00424]
[1752406258672,1.49246057,118120.0,118110.0,0.00424]
[1752406259671,1.66178857,118120.0,118110.0,0.00424]
[1752406263683,1.49246057,118120.0,118110.0,0.00424]
[1752406266276,1.55341039,118120.0,118110.0,0.00424]
[1752406269277,1.49246057,118120.0,118110.0,0.00424]
[1752406269576,1.55344274,118120.0,118110.0,0.00424]
[1752406270179,1.55344274,118120.0,118110.0,0.00124]
[1752406271581,1.49246057,118120.0,118110.0,0.00124]
[1752406271975,1.55344638,118120.0,118110.0,0.00124]
[1752406273681,1.55344638,118120.0,118110.0,0.00024]
[1752406278286,0.97360638,118120.0,118110.0,0.00024]
[1752406278587,1.55316638,118120.0,118110.0,0.00024]
[1752406282784,0.03166,118090.0,118080.0,0.37352743]
[1752406282987,0.69826211,118090.0,118080.0,0.37352743]
[1752406283182,0.11874211,118090.0,118080.0,0.37352743]
[1752406283383,0.69826211,118090.0,118080.0,0.37352743]
[1752406283784,0.69826211,118090.0,118080.0,0.37652743]
[1752406284279,0.69826211,118090.0,118080.0,0.37952743]
[1752406284481,0.69826211,118090.0,118080.0,0.37852743]
[1752406285181,0.69826211,118090.0,118080.0,0.37952743]
[1752406285589,0.69826211,118090.0,118080.0,0.37852743]
[1752406286792,0.11874211,118090.0,118080.0,0.37852743]
[1752406286986,0.11874211,118090.0,118080.0,0.37876743]
[1752406287286,0.66656211,118090.0,118080.0,0.37876743]
[1752406288293,0.66656211,118090.0,118080.0,0.37676743]
[1752406288589,0.66656211,118090.0,118080.0,0.37976743]
[1752406290289,0.66656211,118090.0,118080.0,0.37676743]
[1752406290490,0.66656211,118090.0,118080.0,0.38076743]
[1752406291291,0.69822211,118090.0,118080.0,0.38076743]
[1752406297795,0.69822211,118090.0,118080.0,0.01996743]
[1752406298094,0.69822211,118090.0,118080.0,0.38076743]
[1752406300499,0.11874211,118090.0,118080.0,0.38076743]
[1752406300692,0.69830211,118090.0,118080.0,0.38096743]
[1752406303201,0.69830211,118090.0,118080.0,0.38072743]
[1752406312206,0.11894211,118090.0,118080.0,0.38072743]
[1752406312407,0.69818211,118090.0,118080.0,0.38072743]
[1752406313507,0.11894211,118090.0,118080.0,0.38096743]
[1752406324220,0.11894211,118090.0,118080.0,0.38072743]
[1752406325220,0.11894211,118090.0,118080.0,0.38034743]
[1752406325520,0.69810211,118090.0,118080.0,0.38034743]
[1752406335022,0.09996,118080.0,118070.0,0.3608]
[1752406335222,0.11871211,118080.0,118070.0,0.3608]
[1752406336017,0.11871211,118080.0,118070.0,0.3658]
[1752406336215,0.11871211,118080.0,118070.0,0.3698]
[1752406337623,0.11871211,118080.0,118070.0,0.3688]
[1752406338123,0.11871211,118080.0,118070.0,0.37924695]
[1752406341226,0.11871211,118080.0,118070.0,0.3708]
[1752406341924,0.11871211,118080.0,118070.0,0.37923082]
[1752406342122,0.11871211,118080.0,118070.0,0.37623082]
[1752406342326,0.11971211,118080.0,118070.0,0.36923082]
[1752406343014,0.11971211,118080.0,118070.0,0.37023082]
[1752406344429,0.11871211,118080.0,118070.0,0.37123082]
[1752406344924,0.03106,118060.0,118050.0,0.07871]
[1752406345125,0.69787211,118060.0,118050.0,0.07871]
[1752406345925,0.69787211,118060.0,118050.0,0.08736618]
[1752406347229,0.69787211,118060.0,118050.0,0.08936618]
[1752406347725,0.69787211,118060.0,118050.0,0.09036618]
[1752406348431,0.76431803,118060.0,118050.0,0.09036618]
[1752406355440,0.76431803,118060.0,118050.0,0.01165618]
[1752406355737,0.76451803,118060.0,118050.0,0.01185618]
[1752406356140,0.76451803,118060.0,118050.0,0.05969618]
[1752406357143,0.76451803,118060.0,118050.0,0.09056618]
[1752406357634,0.76451803,118060.0,118050.0,0.45136618]
[1752406358841,0.76451803,118060.0,118050.0,0.09056618]
[1752406362945,0.76451803,118060.0,118050.0,0.01185618]
[1752406363444,1.12531803,118060.0,118050.0,0.01185618]
[1752406364246,1.12531803,118060.0,118050.0,0.00985618]
[1752406365247,1.12531803,118060.0,118050.0,0.01085618]
[1752406365447,1.12631803,118060.0,118050.0,0.01085618]
[1752406365848,1.12531803,118060.0,118050.0,0.00885618]
[1752406366048,1.12531803,118060.0,118050.0,0.00985618]
[1752406367445,1.12531803,118060.0,118050.0,0.05786618]
[1752406374953,0.76451803,118060.0,118050.0,0.05786618]
[1752406376752,1.12531803,118060.0,118050.0,0.05786618]
[1752406378357,1.12531803,118060.0,118050.0,0.08964618]
[1752406378652,0.04256211,118060.0,118050.0,0.47347618]
[1752406378854,0.04256211,118060.0,118050.0,0.64289218]
[1752406379060,0.59803211,118060.0,118050.0,0.64289218]
[1752406379852,0.65165211,118060.0,118050.0,0.64289218]
[1752406380550,0.65165211,118060.0,118050.0,0.47347618]